Cogmind - Beta 15 @@@ ROGUE MODE // 2025.07.03 @ 19:18:27 Player: LameThyst Result: Destroyed by Y-45 Defender with Beam Rifle Performance ------------- Evolutions (2) 1000 Regions Visited (5) 1000 Robots Destroyed (34) 170 Value Destroyed (1069) 1069 Prototype IDs (23) 460 Alien Tech Used (0) 0 Bonus (300) 300 TOTAL SCORE: 3999 Bonus ------- Aligned with FarCom 300 Cogmind --------- Core Integrity 0/550 Matter 290/300 Energy 140/140 System Corruption 0% Temperature Cool (-73) Movement Core (950) Ox18 Location -8/Materials Parts ------- > --- POWER (1) -------- Light Deuterium Engine > --- PROPULSION (4) --- (None) > --- UTILITY (3) ------ Cryofiber Web High-capacity Storage Unit Signal Interpreter > --- WEAPON (3) ------- Particle Gun Pulse Rifle Axe > --- INVENTORY (20) --- Ion Engine Light Deuterium Engine Scrap Suit High-capacity Matter Pod (200) Sensor Array Insulated Plating Graphene Brace Hardlight Generator Particle Gun AWS/Thermal Light Cannon Grenade Launcher Rocket Launcher Peak State ------------ > --- POWER ------------ Reinforced Deuterium Engine > --- PROPULSION ------- Light Treads Light Treads Light Treads Advanced Treads > --- UTILITY ---------- High-capacity Storage Unit Signal Interpreter Insulated Plating > --- WEAPON ----------- AWS/Thermal Rocket Launcher > --- INVENTORY -------- Ion Engine Light Deuterium Engine Light Treads Light Treads Compact Wheel Scrap Suit Cryofiber Web Improved Heat Sink High-capacity Matter Pod Sensor Array Graphene Brace Hardlight Generator Heavy EM Pulse Gun Particle Gun Pulse Rifle Assault Rifle Light Cannon Grenade Launcher Axe [Rating: 37] Favorites ----------- Power Light Nuclear Core Engine Ion Engine Power Core Light Nuclear Core Propulsion Light Treads Treads Light Treads Wheel Compact Wheel Utility Signal Interpreter Device Cryofiber Web Storage High-capacity Storage Unit Processor Signal Interpreter Protection Insulated Plating Weapon AWS/Thermal Energy Gun AWS/Thermal Ballistic Gun Assault Rifle Ballistic Cannon Light Cannon Launcher Rocket Launcher Slashing Weapon Axe Build | -11 -10 -10 -10 -9 -8 ------- Run | Yrd Mat Min Exi Min Mat Slots Evolved 4 | . . . . . 4 Power . | . . . . . . Propulsion 2 | . . . . . 2 Utility 1 | . . . . . 1 Weapon 1 | . . . . . 1 Parts Attached 32 | 6 1 5 1 . 19 Power 6 | 1 . 1 . . 4 Engine 5 | 1 . . . . 4 Core 1 | . . 1 . . . Reactor . | . . . . . . Propulsion 7 | 2 . 3 . . 2 Treads 6 | 2 . 2 . . 2 Leg . | . . . . . . Wheel 1 | . . 1 . . . Hover . | . . . . . . Flight . | . . . . . . Utility 8 | 1 1 1 . . 5 Device 4 | . . . . . 4 Storage 2 | 1 . 1 . . . Processor 1 | . 1 . . . . Hackware . | . . . . . . Protection 1 | . . . . . 1 Artifact . | . . . . . . Weapon 11 | 2 . . 1 . 8 Energy Gun 6 | . . . 1 . 5 Energy Cannon . | . . . . . . Ballistic Gun 2 | 2 . . . . . Ballistic Cannon 1 | . . . . . 1 Launcher 1 | . . . . . 1 Special Weapon . | . . . . . . Impact Weapon . | . . . . . . Slashing Weapon 1 | . . . . . 1 Piercing Weapon . | . . . . . . Special Melee Weapon . | . . . . . . Unidentified Prototypes . | . . . . . . Parts Lost 11 | . . . . 1 10 Power 1 | . . . . 1 . Propulsion 7 | . . . . . 7 Utility 1 | . . . . . 1 Weapon 2 | . . . . . 2 Highest Loss Streak 6 | . . . . 1 6 To Critical Strikes . | . . . . . . Average Backups 15 | 2 6 13 20 19 14 Power 1 | . 1 1 2 1 1 Propulsion 4 | 1 3 4 6 5 . Utility 3 | . . 1 3 4 5 Weapon 6 | . 2 5 8 8 5 Tool/Special . | . . . . . . Unused Backups 16 | . 2 3 2 2 7 Power 2 | . 1 1 . . . Propulsion 2 | . 1 . . 1 . Utility 8 | . . 2 1 . 5 Weapon 4 | . . . 1 1 2 Tool/Special . | . . . . . . Average Slot Usage (%) 86 | . 95 100 88 85 74 Engine 7 | . 14 13 . 6 9 Core 5 | . . . 14 7 . Treads 15 | . 28 15 14 14 13 Wheel 9 | . . 12 14 14 . Device 1 | . . . . . 6 Storage 12 | . 14 14 14 14 9 Processor 12 | . 10 14 14 14 9 Energy Gun 10 | . . . 11 14 16 Ballistic Gun 9 | . 28 28 5 . 1 Slashing Weapon 1 | . . . . . 4 Peak Build Rating 37 | 6 7 14 28 28 37 Average Rating 20 | 4 6 8 25 26 23 On Entrance 13 | . 6 7 14 28 26 Naked Turns . | . . . . . . Heaviest Build 70 | 13 13 48 53 53 70 Greatest Support 82 | 40 40 40 16 16 82 Greatest Overweight (x) 21 | . . 2 3 3 21 Average Overweight (x) 2 | . . 1 2 3 5 Largest Inventory Capacity 20 | 8 8 20 20 20 20 Average Capacity 18 | 7 8 19 20 20 20 Most Carried 20 | 4 8 20 20 20 20 Average Carried 16 | 2 6 13 19 19 15 Final Capacity 20 | 8 8 20 20 20 20 Final Carried 20 | 4 8 20 20 20 15 Class Distribution -------------------- 89% | Mutant 10% | Skirmisher Dominant Class ---------------- Mutant | -10/Materials Mutant | -10/Mines Mutant | -10/Exiles Mutant | -9/Mines Mutant | -8/Materials Resources | -11 -10 -10 -10 -9 -8 ----------- Run | Yrd Mat Min Exi Min Mat Matter Collected 1054 | 260 30 70 50 10 634 Remotely . | . . . . . . Salvage Created 1345 | . 113 . . 341 891 Parts 55 | . 7 . . 14 34 Haulers Intercepted . | . . . . . . Recyclers Shooed 2 | . 1 . . . 1 Parts Field Recycled . | . . . . . . Retrieved Matter . | . . . . . . Parts Self-Destructed . | . . . . . . Prevented . | . . . . . . Kills | -11 -10 -10 -10 -9 -8 ------- Run | Yrd Mat Min Exi Min Mat Combat Hostiles Destroyed 40 | . 1 . . 20 19 Melee 2 | . . . . . 2 Guns 35 | . 1 . . 20 14 Cannons 3 | . . . . . 3 Classes Destroyed 9 | . 3 . . 4 2 Builder 1 | . . . . . 1 Recycler 2 | . 1 . . . 1 Watcher 2 | . 1 . . . 1 Swarmer 9 | . . . . 6 3 Grunt 15 | . 1 . . 1 13 Brawler 3 | . . . . 1 2 Demolisher 1 | . . . . 1 . Heavy 1 | . . . . . 1 Assembled 11 | . . . . 11 . Best Kill Streak 12 | . 2 . . 12 6 Combat Bots Only 12 | . 1 . . 12 6 Max Kills in Single Turn 1 | . 1 . . 1 1 Gunslinging . | . . . . . . Exploded . | . . . . . . Melee 1 | . . . . . 1 Uniques/NPCs Destroyed . | . . . . . . Combat | -11 -10 -10 -10 -9 -8 -------- Run | Yrd Mat Min Exi Min Mat Hostile Shots Fired 171 | . 1 . . 28 142 Missed 30 | . 1 . . 7 22 Hits 141 | . . . . 21 120 Melee 2 | . . . . 1 1 Projectile 139 | . . . . 20 119 AOE 4 | . . . . 4 . Critical Strikes 14 | . . . . 1 13 Damage Taken 2440 | . . . . 334 2106 Core 614 | . . . . 54 560 Absorbed by Shields . | . . . . . . Core Remaining (%) 89 | 100 . . . 78 . Volleys Fired 68 | . 5 . . . 63 Largest 3 | . 2 . . . 3 Hottest 193 | . 40 . . . 193 Shots Fired 220 | . 10 . . 56 154 Gun 202 | . 10 . . 56 136 Cannon 16 | . . . . . 16 Launcher 2 | . . . . . 2 Special . | . . . . . . Kinetic 44 | . 10 . . . 34 Thermal 166 | . . . . 56 110 Explosive 2 | . . . . . 2 Electromagnetic 8 | . . . . . 8 Robot Hit Streak 24 | . 5 . . 24 9 Robot Miss Streak 5 | . 1 . . 5 5 Penetration Max . | . . . . . . Secondary Targets 2 | . . . . . 2 Max Gunslinging Chain 1 | . . . . . 1 Autonomous 78 | . . . . 56 22 Shots Hit Robots 164 | . 6 . . 44 114 Core Hits 67 | . 5 . . 22 40 Critical Kills . | . . . . . . Critical Parts Destroyed . | . . . . . . Critical Strikes 5 | . . . . . 5 Burn 3 | . . . . . 3 Blast 1 | . . . . . 1 Sever 1 | . . . . . 1 Melee Attacks 14 | . . . . . 14 Impact . | . . . . . . Slashing 14 | . . . . . 14 Piercing . | . . . . . . Sneak Attacks 1 | . . . . . 1 Combat Hostiles . | . . . . . . Follow-up Attacks . | . . . . . . Damage Inflicted 3831 | . 76 . . 1230 2525 Guns 3069 | . 76 . . 1230 1763 Cannons 169 | . . . . . 169 Explosions 157 | . . . . . 157 Melee 436 | . . . . . 436 Ramming . | . . . . . . Kinetic 421 | . 76 . . . 345 Thermal 2742 | . . . . 1230 1512 Explosive 157 | . . . . . 157 Electromagnetic 75 | . . . . . 75 Impact . | . . . . . . Slashing 436 | . . . . . 436 Piercing . | . . . . . . Highest Corruption . | . . . . . . Average Corruption . | . . . . . . Corruption Purged . | . . . . . . Corruption Blocked . | . . . . . . Overload Shots . | . . . . . . Overflow Damage 79 | . . . . . 79 Projectiles . | . . . . . . Explosions 17 | . . . . . 17 Melee 62 | . . . . . 62 Knockbacks 4 | . . . . . 4 Impact . | . . . . . . Kinetic 3 | . . . . . 3 Secondary 1 | . . . . . 1 Self-Inflicted Damage 29 | . . . . . 29 Shots 1 | . . . . . 1 Rammed . | . . . . . . Targets Rammed . | . . . . . . Kicked . | . . . . . . Crushed . | . . . . . . Highest Temperature 1114 | . . . . . 1114 Average Temperature 380 | . . . . . 380 Received Heat Transfer 1113 | . . . . 6 1107 Effects 44 | . . . . . 44 Shutdowns 6 | . . . . . 6 Energy Bleed 5 | . . . . . 5 Interference 9 | . . . . . 9 Matter Decay 6 | . . . . . 6 Short Circuit 4 | . . . . . 4 Damage (minor) 1 | . . . . . 1 Damage (major) 10 | . . . . . 10 Damage (core) 3 | . . . . . 3 Siege Activations . | . . . . . . Martial Activations . | . . . . . . Shielding Activations . | . . . . . . Robots Disrupted . | . . . . . . Combat Hostiles . | . . . . . . Robots Corrupted . | . . . . . . Combat Hostiles . | . . . . . . Parts Fried . | . . . . . . Impact Corruptions . | . . . . . . Robots Melted . | . . . . . . Combat Hostiles . | . . . . . . Parts Melted 7 | . . . . . 7 Heat Transferred 4662 | . . . . 1591 3071 Parts Sabotaged . | . . . . . . Parts Stolen . | . . . . . . Parts Stripped . | . . . . . . Power Chain Reactions . | . . . . . . Alert | -11 -10 -10 -10 -9 -8 ------- Run | Yrd Mat Min Exi Min Mat Maximum Alert Level 1 | . . . . . 1 Low Security (%) 97 | 100 100 100 . 100 93 Level 1 2 | . . . . . 6 Level 2 . | . . . . . . Level 3 . | . . . . . . Level 4 . | . . . . . . Level 5 . | . . . . . . High Security . | . . . . . . Max Security . | . . . . . . Peak Influence 226 | . 30 . . 138 226 Initial 51 | . . . . . 51 Average 37 | . 2 . . 11 97 Influence Increases 829 | . 42 . . 235 552 Destroy 0b10 Robot/C 580 | . 20 . . 180 380 Destroy 0b10 Robot/NC 25 | . 10 . . . 15 Destroy Leader 104 | . 12 . . 30 62 Successful Hack 8 | . . . . . 8 Disable Machine 30 | . . . . 15 15 Destroy Structure 37 | . . . . 10 27 Lose Combat Pursuer 45 | . . . . . 45 Influence Decreases 827 | . 42 . . 103 682 Entered New Map 81 | . . . . . 81 Time Decay 568 | . 42 . . 90 436 Lost Part 102 | . . . . 2 100 Lost Ally 11 | . . . . 11 . Purge Threat 65 | . . . . . 65 Squads Dispatched 5 | . 1 1 . . 3 Investigation 1 | . . 1 . . . Extermination . | . . . . . . Reinforcement 4 | . 1 . . . 3 Assault . | . . . . . . Garrison . | . . . . . . Intercept . | . . . . . . Searches Triggered . | . . . . . . Construction Impeded . | . . . . . . Haulers Reinforced . | . . . . . . Active Scanning Responses . | . . . . . . Cargo Convoy Interrupts . | . . . . . . Stealth | -11 -10 -10 -10 -9 -8 --------- Run | Yrd Mat Min Exi Min Mat Distress Signals 7 | . 2 . . . 5 Communications Jammed . | . . . . . . Distress Signals . | . . . . . . Times Spotted 63 | . 2 . . 31 30 Peak Tracking Total 20 | . 4 . . 20 6 Tactical Retreats 4 | . . . . 1 3 Traps | -11 -10 -10 -10 -9 -8 ------- Run | Yrd Mat Min Exi Min Mat Traps Triggered . | . . . . . . Indirectly . | . . . . . . Trap Hack Attempts . | . . . . . . Triggered . | . . . . . . Disarmed . | . . . . . . Reprogrammed . | . . . . . . Reused . | . . . . . . Traps Extracted . | . . . . . . Installed . | . . . . . . Triggered . | . . . . . . Machines | -11 -10 -10 -10 -9 -8 ---------- Run | Yrd Mat Min Exi Min Mat Machines Disabled 2 | . . . . 1 1 Max in Single Turn 1 | . . . . 1 1 Machines Repaired . | . . . . . . Machines Dismantled . | . . . . . . Machines Sabotaged . | . . . . . . Overloaded Fab Kills . | . . . . . . Hacking | -11 -10 -10 -10 -9 -8 --------- Run | Yrd Mat Min Exi Min Mat Machines Accessed 11 | . 2 1 5 . 3 Terminals 4 | . 2 . . . 2 Fabricators . | . . . . . . Repair Stations . | . . . . . . Recycling Units 1 | . . . . . 1 Scanalyzers . | . . . . . . Garrison Access . | . . . . . . Total Hacks 61 | . 3 1 50 . 7 Successful 56 | . . 1 50 . 5 Failed 5 | . 3 . . . 2 Catastrophic 2 | . 1 . . . 1 Database Lockouts . | . . . . . . Manual 9 | . 3 . 4 . 2 Terminals 8 | . 3 . . . 5 Fabricators . | . . . . . . Repair Stations . | . . . . . . Recycling Units 2 | . . . . . 2 Scanalyzers . | . . . . . . Garrison Access . | . . . . . . Terminal Hacks 54 | . . 1 50 . 3 Record 49 | . . . 49 . . Open Door 1 | . . 1 . . . Branch Access Points 1 | . . . . . 1 Emergency Access Points 1 | . . . . . 1 Unreport Threat 1 | . . . . . 1 Proto ID Catalog 1 | . . . 1 . . Fabricator Hacks . | . . . . . . Repair Station Hacks . | . . . . . . Recycling Unit Hacks 2 | . . . . . 2 Retrieve Matter 1 | . . . . . 1 Retrieve Components 1 | . . . . . 1 Scanalyzer . | . . . . . . Garrison Access Hacks . | . . . . . . Unauthorized Hacks . | . . . . . . Terminals . | . . . . . . Fabricators . | . . . . . . Repair Stations . | . . . . . . Recycling Units . | . . . . . . Scanalyzers . | . . . . . . Garrison Access . | . . . . . . Data Cores Recovered . | . . . . . . Used . | . . . . . . Hacking Detections 3 | . 2 . . . 1 Full Trace Events . | . . . . . . Feedback Events . | . . . . . . Feedback Blocked . | . . . . . . Robot Schematics Acquired . | . . . . . . Robots Built . | . . . . . . Authchips . | . . . . . . Time . | . . . . . . Total Robot Build Rating . | . . . . . . Part Schematics Acquired . | . . . . . . Parts Built . | . . . . . . Authchips . | . . . . . . Time . | . . . . . . Total Part Build Rating . | . . . . . . Parts Repaired . | . . . . . . Time . | . . . . . . Parts Recycled . | . . . . . . Recycled Matter . | . . . . . . Retrieved Matter . | . . . . . . Retrieved Components 2 | . . . . . 2 Parts Scanalyzed . | . . . . . . Part Schematics Acquired . | . . . . . . Parts Damaged . | . . . . . . Bothacking | -11 -10 -10 -10 -9 -8 ------------ Run | Yrd Mat Min Exi Min Mat Used RIF Installer . | . . . . . . Robots Hacked . | . . . . . . Non-combat . | . . . . . . Combat . | . . . . . . Robot Hacks Applied . | . . . . . . Relay Couplers Released . | . . . . . . Fabnet Peak Effective % . | . . . . . . Robots Rewired . | . . . . . . Allies Hacked . | . . . . . . Hacks Repelled . | . . . . . . Allies | -11 -10 -10 -10 -9 -8 -------- Run | Yrd Mat Min Exi Min Mat Total Allies 3 | . . . . 3 . Largest Group 3 | . . . . 3 . Highest-Rated Group 40 | . . . . 40 . Highest-Rated Ally 16 | . . . . 16 . Total Orders . | . . . . . . Ally Attacks 14 | . . . . 14 . Total Damage 155 | . . . . 155 . Kills 1 | . . . . 1 . Allies Corrupted . | . . . . . . Allies Melted . | . . . . . . Intel | -11 -10 -10 -10 -9 -8 ------- Run | Yrd Mat Min Exi Min Mat Active Infowar (turns) 1 | . . . . . 1 Sensors 1 | . . . . . 1 Robot Analysis Total . | . . . . . . Derelict Logs Recovered 3 | . . 2 . 1 . Drone Launches . | . . . . . . Drone Recoveries . | . . . . . . Exploration | -11 -10 -10 -10 -9 -8 ------------- Run | Yrd Mat Min Exi Min Mat Turns Passed 4533 | 68 427 713 1394 824 1107 Spaces Moved 2515 | 39 248 501 978 546 203 Core 66 | 6 . . . . 60 Treads 437 | 33 248 33 . . 123 Legs . | . . . . . . Wheels 2012 | . . 468 978 546 20 Hover . | . . . . . . Flight . | . . . . . . Fastest Speed 50 | 50 160 130 130 145 145 Average Speed 162 | 143 160 132 141 145 393 Slowest Speed 1100 | 160 160 240 145 145 1100 Overloaded Moves . | . . . . . . Propulsion Burnouts . | . . . . . . Robots Hopped . | . . . . . . Potential Cave-ins . | . . . . . . Cave-ins Triggered . | . . . . . . Exploration Rate (%) 56 | 5 40 99 94 82 18 Regions Visited 5 Branch Regions 3 Pre-discovered Areas 1 | . . . 1 . . Known Exits Taken 4 | . 1 1 1 1 . Unknown Exits Taken 1 | 1 . . . . . Scrap Searched 2 | . . 1 . 1 . Spaces Dug 2 | . . . . . 2 Terrain Destroyed 37 | . . . . 11 26 Melee 2 | . . . . . 2 Projectile 12 | . . . . 11 1 AOE 23 | . . . . . 23 Terrain Rammed . | . . . . . . Walls Destroyed . | . . . . . . Machines Disabled . | . . . . . . Actions | -11 -10 -10 -10 -9 -8 --------- Run | Yrd Mat Min Exi Min Mat Total 2810 | 48 270 550 987 581 374 Wait 100 | . 8 23 . 25 44 Move 2510 | 38 247 500 977 545 203 Hop . | . . . . . . Pick Up 39 | 4 7 15 . 5 8 Fast Attach 8 | 6 . . 1 . 1 Attach 18 | . 1 1 . 1 15 Detach 7 | . . 1 2 . 4 Swap 20 | . . 5 . . 15 Drop 21 | . 2 5 2 5 7 Fire 68 | . 5 . . . 63 Melee 14 | . . . . . 14 Ram . | . . . . . . Kick . | . . . . . . Crush . | . . . . . . Escape Stasis . | . . . . . . Rewire 5 | . . . 5 . . Trap . | . . . . . . Miscellaneous . | . . . . . . Route ------- -11/Scrapyard -10/Materials (discovered 3 exits: *Mat / *Min / *Sub) -10/Mines (discovered 3 exits: *Mat x2 / *Exi) -10/Exiles (discovered 2 exits: *Min x2) -9/Mines (discovered 2 exits: *Mat x2) -8/Materials History --------- Turn | Location | Event 9 | -11/Scrapyard | Discovered new exit (range 15) 69 | -11/Scrapyard | Entered Materials 70 | -10/Materials | Met a group of wandering Federalists 211 | -10/Materials | Discovered new exit (range 14) 273 | -10/Materials | Discovered new exit (range 16) 296 | -10/Materials | Identified exit to Materials 300 | -10/Materials | Build established: Mutant 331 | -10/Materials | Discovered new exit (range 8) 376 | -10/Materials | Identified exit to Mines 441 | -10/Materials | Identified exit to Subcaves 496 | -10/Materials | Entered Mines 530 | -10/Mines | Found DCF Scrap (13 items) 580 | -10/Mines | Learned Materials stockpile data 640 | -10/Mines | Received a Rocket Launcher from a helpful Derelict 725 | -10/Mines | Discovered exit to Materials (range 10) 767 | -10/Mines | Discovered exit to Materials (range 7) 1159 | -10/Mines | Met a Derelict shopkeep closing up shop 1203 | -10/Mines | Deemed a non-threat by the Exiles lab entrance 1204 | -10/Mines | Discovered new exit (range 5) 1208 | -10/Mines | Identified exit to Exiles 1209 | -10/Mines | Entered Exiles 1246 | -10/Exiles | Met 8R-AWN 1267 | -10/Exiles | Met EX-HEX 1333 | -10/Exiles | Met EX-BIN 1373 | -10/Exiles | Aligned with FarCom system 1374 | -10/Exiles | Given EX-Vault access code 1476 | -10/Exiles | Opened EX-Vault 1493 | -10/Exiles | Found AWS/Thermal 1528 | -10/Exiles | Warned to stay clear of 0b10 Research branches 1641 | -10/Exiles | Met EX-DEC 1688 | -10/Exiles | Learned location of Zion (-7) 1869 | -10/Exiles | Visited The Gauntlet 2131 | -10/Exiles | Discovered new exit (range 10) 2142 | -10/Exiles | Identified exit to Mines 2320 | -10/Exiles | Discovered exit to Mines (range 14) 2603 | -10/Exiles | Left Exiles lab with AWS/Thermal 2603 | -10/Exiles | Entered Mines 2676 | -9/Mines | Learned 2 Materials zone layouts 2773 | -9/Mines | Assisted by bots powering up and referring to "LRC-V3" 2902 | -9/Mines | Found a Scrap Suit stashed away for nefarious purposes 2908 | -9/Mines | Found Scrap Suit 2950 | -9/Mines | Assembled infested the area 3017 | -9/Mines | Lost 3 allies 3043 | -9/Mines | Destroyed 12 combat bots 3056 | -9/Mines | Found a hidden stash of uninstalled traps 3387 | -9/Mines | Discovered new exit (range 7) 3395 | -9/Mines | Identified exit to Materials 3413 | -9/Mines | Discovered exit to Materials (range 5) 3427 | -9/Mines | Entered Materials 3427 | -8/Materials | Evolved 4 slots: Propulsion x2, Utility x1, Weapon x1 3655 | -8/Materials | AWS/Thermal suddenly broke down 3728 | -8/Materials | Build established: Skirmisher 3756 | -8/Materials | Lost 3 parts (3n) 3910 | -8/Materials | Core integrity fell below 50% 3912 | -8/Materials | Core integrity fell below 20% 3942 | -8/Materials | Lost 6 parts (4n1u1w) 4236 | -8/Materials | Build established: Mutant 4534 | -8/Materials | Destroyed by Y-45 Defender with Beam Rifle Last Messages --------------- 03941_ Overheating: Energy bleed (-38). 03943_ Overheating: Cryofiber Web damaged (-6). 03949_ Overheating: Core damaged (-88). 03953_ Rnf. Deuterium Engine broken. 03953_ Overheating: Short circuit. 03957_ Overheating: Matter decay (-75). 03966_ R-06 Scavenger collects Imp. Heat Sink. 03980_ Dropped Broken Rnf. Deuterium Engine. 03985_ R-06 Scavenger collects Broken Rnf. Deuterium Engine. 03989_ K-01 Serf collects debris. 04032_ K-01 Serf cleans the Terminal. 04098_ Acquired 95 matter. 04214_ Acquired Hardlight Generator. 04215_ Dropped Hardlight Generator. 04235_ R-06 Scavenger collects Hardlight Generator. 04301_ K-01 Serf cleans the Terminal. 04420_ K-01 Serf cleans the Scanalyzer. 04534_ Critical hit (Burn: +37). Map ----- +----------------------------------------------------+ | ?????????????????????????????????????????????????? | | ?????????????????????????????????????????????????? | | ?????????????????????????????????????????????????? | | ?????????????????????????????????????????????????? | | ?????????????????????????????????????????????????? | | ?????????????????????????????????????????????????? | | ?????????????????????????????????????????????????? | | ?????????????????????????????????????????????????? | | ?????????????????????????????????????????????????? | | ?????????????????????????????????????????????????? | | ?????????????????????????????????????????????????? | | ?????????????????????????????????????????????????? | | ?????????????????????????????????????????????????? | | ?????????????????????????????????????????????????? | | ?????????????????????????????????????????????????? | | ?????????????????????????????????????????????????? | | ?????????????????????????????????????????????????? | | ???????????????????????????????# #????????# | | ???????????????????????????????# #????????###### | | ???????????????????????????????# #??????????# | | ????????????????????????######## ########???# | | ????????????????????????# ! # # ##### | | ????????????????????????# # # + | | ????????????????????????#/ "" # # w##### | | ?????#####??????????????# S"" + + #???# | | # #### ################@ "" # # !#???# | | # w + Y # # #???## | | ?##### ################+###### ########????# | | ?????## ##??????????????# #???# #??????????# | | ??????# #???????????????# #???# #??????????# | | ??????# ########????????# #???# #???######## | | ####### # #????????# #???# #???# ! # | | !# # #????????# #???# #???# # | | # # """ #????????# #???## ##???# + | | """ # # """ #????????? ?????# #????# # | | """ + + """ #????????? ?????# #????# "T" # | | """ % # # #????????? ?????# #????# ### | | ####### ########????????? ?????# #????### ####?# | | ###### #######????????? ?????# #??????###????# | | T ????? ????## ####??????????# | | ###### ######?????????? ???? #??????????# | | ?????# ###???????????????????? #??????????# | | ?????# #?????????????????????????????????????????? | | ?????# #?????????????????????????????????????????? | | ?????# #?????????????????????????????????????????? | | ?????# #?????????????????????????????????????????? | | ###??# #?????????????????????????????????????????? | | ??#%#????????????????????????????????/????????? | | "" ??# #?????????????????????????????????????????? | | "" ?##%#?????????????????????????????????????????? | +----------------------------------------------------+ Best States ------------- Heat Dissipation 45 Energy Generation 16 Energy Capacity 290 Matter Stores 300 Matter Capacity 300 Sight Range 16 Terrain Scan Density 10 Base Temperature (-) 100 Armor Coverage 150 Resistance: EM 15 Evasion (%) 40 Recoil Reduction 4 Item Schematics ----------------- None Robot Schematics ------------------ None Fabricated ------------ Nothing Repaired ---------- Nothing Alien Tech Used ----------------- None Achievements -------------- None Challenges ------------ None Game ------ Seed ChromionDerelictKit Manual? 0 Play Time 00:49:26 Cumulative 50.9 hours Start 2025.07.03 @ 18:22:46 End 2025.07.03 @ 19:18:27 Sessions 1 Manual Loads 0 Difficulty Rogue Special Mode None Game No. 58 Rogue 58 Adventurer 0 Explorer 0 Win Type - Total 0 Types 0/0/0/0/0/0/0/0/0/0 Lore% 20 Gallery% 35 Achievement% 28 Wizard Run 0 Options --------- Layout 1 ASCII 0 Keyboard 0 Movement Mouse Keybinds 0 Fullscreen 2 Font 48/Smallcaps Map View 50x35 Zoom Use 0% Tactical HUD 1 Map Filters NONE Filters NONE Steam 0 RUN: a184f57b-4970-42a0-9326-3ec5cedd041e